[Event "Late-Titled-Tuesday-Blitz-September-19-2023"]
[Site "Chess.com"]
[Date "2023.09.19"]
[Round "2"]
[White "AlexNovitz"]
[Black "GoltsevDmitry2000"]
[Result "0-1"]
[WhiteElo "2248"]
[BlackElo "2652"]
[TimeControl "180+1"]
[EndTime "14:15:32 PDT"]
[Termination "GoltsevDmitry2000 won by resignation"]

1. e4 {[%clk 0:03:00.9]} 1... e6 {[%clk 0:02:50.6]} 2. d4 {[%clk 0:03:00.4]}
2... d5 {[%clk 0:02:50.4]} 3. e5 {[%clk 0:03:01.1]} 3... c5 {[%clk 0:02:50.3]}
4. c3 {[%clk 0:03:01.7]} 4... Nc6 {[%clk 0:02:50]} 5. Nf3 {[%clk 0:03:02.4]}
5... Nge7 {[%clk 0:02:49.6]} 6. Na3 {[%clk 0:02:59.6]} 6... cxd4 {[%clk
0:02:50]} 7. cxd4 {[%clk 0:02:59.4]} 7... Nf5 {[%clk 0:02:50.6]} 8. Nc2 {[%clk
0:02:59.1]} 8... Qb6 {[%clk 0:02:50.6]} 9. Bd3 {[%clk 0:02:56.3]} 9... Nb4
{[%clk 0:02:47.2]} 10. Bxf5 {[%clk 0:02:52.1]} 10... exf5 {[%clk 0:02:46.9]} 11.
O-O {[%clk 0:02:52]} 11... h6 {[%clk 0:02:44.8]} 12. a3 {[%clk 0:02:47.5]} 12...
Nxc2 {[%clk 0:02:44.5]} 13. Qxc2 {[%clk 0:02:48.4]} 13... Be6 {[%clk 0:02:43]}
14. Be3 {[%clk 0:02:39.1]} 14... Be7 {[%clk 0:02:40.8]} 15. h4 {[%clk
0:02:38.1]} 15... O-O {[%clk 0:02:34.3]} 16. Qd2 {[%clk 0:02:32.3]} 16... Kh7
{[%clk 0:02:28.2]} 17. Rac1 {[%clk 0:02:24.4]} 17... Rfc8 {[%clk 0:02:27.7]} 18.
Rxc8 {[%clk 0:02:24.1]} 18... Rxc8 {[%clk 0:02:27.3]} 19. Rc1 {[%clk 0:02:24.8]}
19... Rxc1+ {[%clk 0:02:24.3]} 20. Qxc1 {[%clk 0:02:25.7]} 20... a5 {[%clk
0:02:15.7]} 21. Ne1 {[%clk 0:02:06.7]} 21... Bxh4 {[%clk 0:02:13.6]} 22. g3
{[%clk 0:02:05.6]} 22... Be7 {[%clk 0:02:13.4]} 23. Nd3 {[%clk 0:02:02.8]} 23...
g5 {[%clk 0:02:09.9]} 24. Qc2 {[%clk 0:01:57.4]} 24... Kg7 {[%clk 0:02:07.4]}
25. f4 {[%clk 0:01:55.4]} 25... g4 {[%clk 0:02:06]} 26. Kf2 {[%clk 0:01:51.4]}
26... h5 {[%clk 0:02:06.2]} 27. Nc5 {[%clk 0:01:48.1]} 27... h4 {[%clk
0:01:59.8]} 28. gxh4 {[%clk 0:01:45]} 28... Bxh4+ {[%clk 0:01:58.9]} 29. Kg2
{[%clk 0:01:45.6]} 29... Be7 {[%clk 0:01:51.4]} 30. Bd2 {[%clk 0:01:21]} 30...
Qd8 {[%clk 0:01:49.8]} 31. Nxb7 {[%clk 0:01:16]} 31... Qh8 {[%clk 0:01:47.7]}
32. Qc3 {[%clk 0:01:04.9]} 32... Bd7 {[%clk 0:01:36.2]} 33. Nc5 {[%clk
0:00:50.9]} 33... Bb5 {[%clk 0:01:35]} 34. a4 {[%clk 0:00:30.8]} 34... Be2
{[%clk 0:01:34.7]} 35. Qg3 {[%clk 0:00:22.3]} 35... Bf3+ {[%clk 0:01:34.4]} 36.
Kg1 {[%clk 0:00:22.7]} 36... Qh1+ {[%clk 0:01:33.9]} 37. Kf2 {[%clk 0:00:23.2]}
37... Bh4 {[%clk 0:01:34.6]} 0-1

[Event "Late-Titled-Tuesday-Blitz-September-19-2023"]
[Site "Chess.com"]
[Date "2023.09.19"]
[Round "2"]
[White "Herman-NY"]
[Black "queen_iryna"]
[Result "0-1"]
[WhiteElo "2508"]
[BlackElo "2375"]
[TimeControl "180+1"]
[EndTime "14:15:33 PDT"]
[Termination "queen_iryna won by resignation"]

1. e4 {[%clk 0:03:00.9]} 1... d6 {[%clk 0:03:00.9]} 2. d4 {[%clk 0:03:00.8]}
2... Nf6 {[%clk 0:03:00.5]} 3. Nc3 {[%clk 0:03:01.5]} 3... e5 {[%clk 0:02:57.8]}
4. Nf3 {[%clk 0:03:01.6]} 4... Nc6 {[%clk 0:02:57.2]} 5. d5 {[%clk 0:02:41.4]}
5... Ne7 {[%clk 0:02:54.5]} 6. h4 {[%clk 0:02:40.4]} 6... Bg4 {[%clk 0:02:50.6]}
7. Be2 {[%clk 0:02:39.9]} 7... h5 {[%clk 0:02:49.6]} 8. Be3 {[%clk 0:02:03.6]}
8... Ng6 {[%clk 0:02:48.8]} 9. g3 {[%clk 0:02:01.1]} 9... c6 {[%clk 0:02:42.5]}
10. Ng5 {[%clk 0:01:55]} 10... Be7 {[%clk 0:02:34.9]} 11. f3 {[%clk 0:01:44.8]}
11... Bd7 {[%clk 0:02:31.4]} 12. a4 {[%clk 0:01:34.4]} 12... O-O {[%clk
0:02:24.4]} 13. a5 {[%clk 0:01:33.2]} 13... cxd5 {[%clk 0:02:22.2]} 14. exd5
{[%clk 0:01:32.7]} 14... Nh7 {[%clk 0:02:13.4]} 15. Nxh7 {[%clk 0:01:18.4]}
15... Kxh7 {[%clk 0:02:14.3]} 16. Bd3 {[%clk 0:01:18.9]} 16... Kg8 {[%clk
0:01:58.5]} 17. Ne4 {[%clk 0:01:14.1]} 17... f5 {[%clk 0:01:53.9]} 18. Ng5
{[%clk 0:01:14.5]} 18... f4 {[%clk 0:01:53.8]} 19. Bxg6 {[%clk 0:01:14.4]} 19...
fxe3 {[%clk 0:01:51.5]} 20. f4 {[%clk 0:00:51.3]} 20... Bxg5 {[%clk 0:01:46.6]}
21. hxg5 {[%clk 0:00:16.1]} 21... Bg4 {[%clk 0:01:43.6]} 22. Qd3 {[%clk
0:00:06.3]} 22... exf4 {[%clk 0:01:37.7]} 23. Bxh5 {[%clk 0:00:05.1]} 23... Qxg5
{[%clk 0:01:33.2]} 24. Bf7+ {[%clk 0:00:03.3]} 24... Kxf7 {[%clk 0:01:31.8]} 25.
Qh7 {[%clk 0:00:04.1]} 25... Bf5 {[%clk 0:01:24.5]} 0-1

[Event "Late-Titled-Tuesday-Blitz-September-19-2023"]
[Site "Chess.com"]
[Date "2023.09.19"]
[Round "2"]
[White "tarno17"]
[Black "Lady_Nika"]
[Result "0-1"]
[WhiteElo "2167"]
[BlackElo "2448"]
[TimeControl "180+1"]
[EndTime "14:15:35 PDT"]
[Termination "Lady_Nika won by checkmate"]

1. e4 {[%clk 0:03:00.9]} 1... c5 {[%clk 0:02:58.6]} 2. Nf3 {[%clk 0:03:00.9]}
2... e6 {[%clk 0:02:58.6]} 3. c3 {[%clk 0:02:55.6]} 3... d5 {[%clk 0:02:57.3]}
4. exd5 {[%clk 0:02:56.5]} 4... exd5 {[%clk 0:02:56.8]} 5. d4 {[%clk 0:02:56.1]}
5... cxd4 {[%clk 0:02:56.4]} 6. Qxd4 {[%clk 0:02:56]} 6... Nf6 {[%clk
0:02:57.3]} 7. Bb5+ {[%clk 0:02:55.1]} 7... Nc6 {[%clk 0:02:53.6]} 8. O-O {[%clk
0:02:53]} 8... Be7 {[%clk 0:02:49]} 9. Ne5 {[%clk 0:02:39.7]} 9... Bd7 {[%clk
0:02:47.5]} 10. Nxd7 {[%clk 0:02:39.1]} 10... Nxd4 {[%clk 0:02:40]} 11. Nxf6+
{[%clk 0:02:34.7]} 11... Kf8 {[%clk 0:02:39.8]} 12. Nd7+ {[%clk 0:02:28.9]}
12... Kg8 {[%clk 0:02:39.5]} 13. cxd4 {[%clk 0:02:29.2]} 13... a6 {[%clk
0:02:39.3]} 14. Ba4 {[%clk 0:02:05.6]} 14... b5 {[%clk 0:02:38.1]} 15. Bb3
{[%clk 0:02:03.3]} 15... Qxd7 {[%clk 0:02:37.8]} 16. Nc3 {[%clk 0:02:03.7]}
16... Re8 {[%clk 0:02:24]} 17. Nxd5 {[%clk 0:01:55.4]} 17... Bd6 {[%clk
0:02:21.2]} 18. Bh6 {[%clk 0:01:18.1]} 18... a5 {[%clk 0:02:02.9]} 19. a4 {[%clk
0:00:57.2]} 19... Re6 {[%clk 0:01:51.5]} 20. Be3 {[%clk 0:00:45.2]} 20... b4
{[%clk 0:01:47]} 21. Nb6 {[%clk 0:00:42.7]} 21... Bxh2+ {[%clk 0:01:46]} 22.
Kxh2 {[%clk 0:00:25.8]} 22... Rxb6 {[%clk 0:01:46.9]} 23. Rac1 {[%clk
0:00:15.4]} 23... h5 {[%clk 0:01:43.4]} 24. d5 {[%clk 0:00:14.8]} 24... Rg6
{[%clk 0:01:42.7]} 25. Bf4 {[%clk 0:00:08.3]} 25... Qg4 {[%clk 0:01:39.3]} 26.
g3 {[%clk 0:00:03]} 26... h4 {[%clk 0:01:38.3]} 27. Rh1 {[%clk 0:00:01.9]} 27...
hxg3+ {[%clk 0:01:37.9]} 28. Kg2 {[%clk 0:00:01.2]} 28... gxf2+ {[%clk
0:01:37.4]} 29. Kxf2 {[%clk 0:00:01.8]} 29... Qxf4+ {[%clk 0:01:37.2]} 30. Ke2
{[%clk 0:00:02]} 30... Rg2+ {[%clk 0:01:36.8]} 31. Kd3 {[%clk 0:00:02.2]} 31...
Rd2# {[%clk 0:01:36.4]} 0-1

[Event "Late-Titled-Tuesday-Blitz-September-19-2023"]
[Site "Chess.com"]
[Date "2023.09.19"]
[Round "2"]
[White "Merybliya"]
[Black "cukus"]
[Result "0-1"]
[WhiteElo "1762"]
[BlackElo "2410"]
[TimeControl "180+1"]
[EndTime "14:15:43 PDT"]
[Termination "cukus won by resignation"]

1. e4 {[%clk 0:03:00.9]} 1... c5 {[%clk 0:02:59.1]} 2. Nf3 {[%clk 0:02:57.4]}
2... Nc6 {[%clk 0:02:59.2]} 3. d4 {[%clk 0:02:56.4]} 3... cxd4 {[%clk
0:02:59.5]} 4. Nxd4 {[%clk 0:02:54.2]} 4... Nf6 {[%clk 0:02:59.1]} 5. Nc3 {[%clk
0:02:53.8]} 5... e5 {[%clk 0:02:54.6]} 6. Nb3 {[%clk 0:02:51.1]} 6... Bb4 {[%clk
0:02:53.1]} 7. Bd3 {[%clk 0:02:48.1]} 7... d5 {[%clk 0:02:51.1]} 8. Bd2 {[%clk
0:02:22.8]} 8... Bxc3 {[%clk 0:02:47.7]} 9. Bxc3 {[%clk 0:02:19.1]} 9... dxe4
{[%clk 0:02:40.2]} 10. Be2 {[%clk 0:02:17.7]} 10... O-O {[%clk 0:02:39.5]} 11.
O-O {[%clk 0:02:16.7]} 11... Bf5 {[%clk 0:02:36.1]} 12. Nc5 {[%clk 0:02:13.2]}
12... Qc7 {[%clk 0:02:33.5]} 13. Qd2 {[%clk 0:01:58.2]} 13... h6 {[%clk
0:02:15.2]} 14. Rad1 {[%clk 0:01:51]} 14... Rad8 {[%clk 0:02:07.8]} 15. Qe3
{[%clk 0:01:50.4]} 15... Nd5 {[%clk 0:02:06.4]} 16. Rxd5 {[%clk 0:01:28.7]}
16... Rxd5 {[%clk 0:02:05.6]} 17. Nxe4 {[%clk 0:01:28]} 17... Nd4 {[%clk
0:01:57.2]} 18. Bd3 {[%clk 0:01:16.4]} 18... Bg6 {[%clk 0:01:50.1]} 19. h4
{[%clk 0:01:08.1]} 19... f5 {[%clk 0:01:40.1]} 20. Nd2 {[%clk 0:01:01.6]} 20...
f4 {[%clk 0:01:34.3]} 21. Qe1 {[%clk 0:00:57.4]} 21... Bxd3 {[%clk 0:01:31.4]}
22. cxd3 {[%clk 0:00:57.5]} 22... f3 {[%clk 0:01:30.6]} 23. gxf3 {[%clk
0:00:52.7]} 23... Nxf3+ {[%clk 0:01:27.6]} 24. Nxf3 {[%clk 0:00:52]} 24... Rxf3
{[%clk 0:01:27.3]} 25. Qe4 {[%clk 0:00:49.9]} 25... Qf7 {[%clk 0:01:27.4]} 26.
Re1 {[%clk 0:00:46.6]} 26... Rf4 {[%clk 0:01:26.1]} 27. Qe3 {[%clk 0:00:45.2]}
27... Qg6+ {[%clk 0:01:17.9]} 28. Kf1 {[%clk 0:00:39.1]} 28... Rxh4 {[%clk
0:01:13.4]} 29. Bxe5 {[%clk 0:00:36.9]} 29... Rh1+ {[%clk 0:01:09.5]} 30. Ke2
{[%clk 0:00:33.4]} 30... Qh5+ {[%clk 0:01:09.6]} 31. Kd2 {[%clk 0:00:32.7]}
31... Rxe1 {[%clk 0:01:08.3]} 32. Qxe1 {[%clk 0:00:31.1]} 32... Qxe5 {[%clk
0:01:08]} 33. Qc1 {[%clk 0:00:28.8]} 33... Qf4+ {[%clk 0:01:06.6]} 0-1

[Event "Late-Titled-Tuesday-Blitz-September-19-2023"]
[Site "Chess.com"]
[Date "2023.09.19"]
[Round "2"]
[White "louis198"]
[Black "Hirna2005"]
[Result "1-0"]
[WhiteElo "2685"]
[BlackElo "2366"]
[TimeControl "180+1"]
[EndTime "14:15:47 PDT"]
[Termination "louis198 won by checkmate"]

1. d4 {[%clk 0:03:00.3]} 1... g6 {[%clk 0:03:00.6]} 2. Bf4 {[%clk 0:03:00.9]}
2... Bg7 {[%clk 0:03:01]} 3. e3 {[%clk 0:03:01.3]} 3... d6 {[%clk 0:03:01.5]} 4.
Nf3 {[%clk 0:03:01.2]} 4... Nf6 {[%clk 0:03:01.6]} 5. h3 {[%clk 0:03:01.5]} 5...
O-O {[%clk 0:03:01.5]} 6. Bc4 {[%clk 0:03:02.3]} 6... b6 {[%clk 0:03:00.5]} 7.
O-O {[%clk 0:03:01.8]} 7... Bb7 {[%clk 0:03:00.7]} 8. c3 {[%clk 0:03:00.4]} 8...
Nbd7 {[%clk 0:02:59.6]} 9. Nbd2 {[%clk 0:03:00.3]} 9... Ne4 {[%clk 0:02:58.7]}
10. a4 {[%clk 0:02:59.7]} 10... a5 {[%clk 0:02:55.8]} 11. Nxe4 {[%clk
0:02:59.3]} 11... Bxe4 {[%clk 0:02:55.2]} 12. Nd2 {[%clk 0:03:00]} 12... Bb7
{[%clk 0:02:55.1]} 13. Bh2 {[%clk 0:02:59.4]} 13... e5 {[%clk 0:02:53.7]} 14.
Qc2 {[%clk 0:02:53.8]} 14... Kh8 {[%clk 0:02:46.7]} 15. f4 {[%clk 0:02:48.5]}
15... f5 {[%clk 0:02:40.4]} 16. Rae1 {[%clk 0:02:41.6]} 16... e4 {[%clk
0:02:37.1]} 17. b4 {[%clk 0:02:37.3]} 17... c5 {[%clk 0:02:26.2]} 18. bxc5
{[%clk 0:02:36.4]} 18... bxc5 {[%clk 0:02:24.3]} 19. Rb1 {[%clk 0:02:36.5]}
19... Qc7 {[%clk 0:02:15.5]} 20. Kh1 {[%clk 0:02:29.9]} 20... Rfc8 {[%clk
0:02:01.1]} 21. Be6 {[%clk 0:02:28.5]} 21... cxd4 {[%clk 0:01:52.4]} 22. exd4
{[%clk 0:02:23.5]} 22... Bxd4 {[%clk 0:01:50]} 23. Qb3 {[%clk 0:02:16.3]} 23...
Nc5 {[%clk 0:01:47.9]} 24. Qc4 {[%clk 0:02:06]} 24... Nxe6 {[%clk 0:01:47.4]}
25. Qxe6 {[%clk 0:02:04]} 25... Bg7 {[%clk 0:01:31.7]} 26. Bg1 {[%clk
0:02:00.5]} 26... Ba6 {[%clk 0:01:29.1]} 27. Rfc1 {[%clk 0:01:59.5]} 27... Bd3
{[%clk 0:01:24.2]} 28. Rb6 {[%clk 0:01:55.2]} 28... Re8 {[%clk 0:01:04.2]} 29.
Qd5 {[%clk 0:01:48.6]} 29... Qd7 {[%clk 0:00:48]} 30. Rb7 {[%clk 0:01:43.8]}
30... Qe6 {[%clk 0:00:39.2]} 31. Qc6 {[%clk 0:01:36.9]} 31... Rac8 {[%clk
0:00:38.9]} 32. Qb6 {[%clk 0:01:34.3]} 32... d5 {[%clk 0:00:26.3]} 33. Qa7
{[%clk 0:01:27.7]} 33... Rg8 {[%clk 0:00:20.5]} 34. Bd4 {[%clk 0:01:26.5]} 34...
e3 {[%clk 0:00:10.4]} 35. Rxg7 {[%clk 0:01:21.6]} 35... Rxg7 {[%clk 0:00:10.1]}
36. Qxg7# {[%clk 0:01:21.1]} 1-0

[Event "Late-Titled-Tuesday-Blitz-September-19-2023"]
[Site "Chess.com"]
[Date "2023.09.19"]
[Round "2"]
[White "johnathan113"]
[Black "Lion_DL"]
[Result "1-0"]
[WhiteElo "2707"]
[BlackElo "2446"]
[TimeControl "180+1"]
[EndTime "14:15:53 PDT"]
[Termination "johnathan113 won by resignation"]

1. e4 {[%clk 0:03:00.9]} 1... c5 {[%clk 0:02:59.9]} 2. Nf3 {[%clk 0:02:58]} 2...
e6 {[%clk 0:02:58]} 3. d4 {[%clk 0:02:58]} 3... cxd4 {[%clk 0:02:57.1]} 4. Nxd4
{[%clk 0:02:58.9]} 4... a6 {[%clk 0:02:57.5]} 5. Nc3 {[%clk 0:02:59.5]} 5... Qc7
{[%clk 0:02:57.9]} 6. g3 {[%clk 0:02:59.2]} 6... Bb4 {[%clk 0:02:56.4]} 7. Ne2
{[%clk 0:02:56.9]} 7... Nf6 {[%clk 0:02:51]} 8. Bg2 {[%clk 0:02:57.1]} 8... O-O
{[%clk 0:02:47.6]} 9. O-O {[%clk 0:02:57.6]} 9... d6 {[%clk 0:02:47.3]} 10. h3
{[%clk 0:02:57.8]} 10... Nbd7 {[%clk 0:02:43.9]} 11. g4 {[%clk 0:02:57.2]} 11...
Nc5 {[%clk 0:02:42.6]} 12. a3 {[%clk 0:02:56.1]} 12... Bxc3 {[%clk 0:02:38.9]}
13. Nxc3 {[%clk 0:02:57]} 13... Nfd7 {[%clk 0:02:35.3]} 14. b4 {[%clk
0:02:42.9]} 14... Nb3 {[%clk 0:02:33.9]} 15. cxb3 {[%clk 0:02:43.6]} 15... Qxc3
{[%clk 0:02:33.6]} 16. Bf4 {[%clk 0:02:13.3]} 16... Ne5 {[%clk 0:02:10.9]} 17.
Qxd6 {[%clk 0:01:41]} 17... Nf3+ {[%clk 0:02:09.9]} 18. Kh1 {[%clk 0:01:37]}
18... Nh4 {[%clk 0:01:58.1]} 19. Rac1 {[%clk 0:00:38.1]} 19... Qxb3 {[%clk
0:01:55.7]} 20. Qe7 {[%clk 0:00:38.2]} 20... Nxg2 {[%clk 0:01:37.4]} 21. Kxg2
{[%clk 0:00:39.1]} 21... e5 {[%clk 0:01:24.2]} 22. Bxe5 {[%clk 0:00:37.9]} 22...
Be6 {[%clk 0:01:24]} 23. Rc3 {[%clk 0:00:32.6]} 23... Qa2 {[%clk 0:01:14.5]} 24.
Rc7 {[%clk 0:00:31.1]} 24... Rae8 {[%clk 0:00:53.4]} 25. Qg5 {[%clk 0:00:27.9]}
25... g6 {[%clk 0:00:38.5]} 26. Qf6 {[%clk 0:00:26.5]} 1-0

[Event "Late-Titled-Tuesday-Blitz-September-19-2023"]
[Site "Chess.com"]
[Date "2023.09.19"]
[Round "2"]
[White "HajiyevKanan"]
[Black "Pawnpusherschessaccademy"]
[Result "0-1"]
[WhiteElo "2489"]
[BlackElo "2336"]
[TimeControl "180+1"]
[EndTime "14:15:53 PDT"]
[Termination "Pawnpusherschessaccademy won by checkmate"]

1. d4 {[%clk 0:03:00.9]} 1... Nf6 {[%clk 0:02:59.2]} 2. Nf3 {[%clk 0:03:01.8]}
2... d5 {[%clk 0:02:58.9]} 3. Bg5 {[%clk 0:03:01.8]} 3... c5 {[%clk 0:02:58.8]}
4. e3 {[%clk 0:03:02.2]} 4... Nc6 {[%clk 0:02:58.4]} 5. c3 {[%clk 0:03:02]} 5...
Qb6 {[%clk 0:02:42.4]} 6. Qb3 {[%clk 0:03:00]} 6... c4 {[%clk 0:02:40.2]} 7. Qc2
{[%clk 0:03:00.2]} 7... Bf5 {[%clk 0:02:37]} 8. Qc1 {[%clk 0:03:00.3]} 8... Ne4
{[%clk 0:02:34]} 9. Bf4 {[%clk 0:03:00.3]} 9... e6 {[%clk 0:02:31.1]} 10. Nh4
{[%clk 0:03:00.2]} 10... g5 {[%clk 0:02:07.1]} 11. Nxf5 {[%clk 0:02:51.4]} 11...
gxf4 {[%clk 0:02:07.3]} 12. Nh4 {[%clk 0:02:48.3]} 12... fxe3 {[%clk 0:02:07.8]}
13. fxe3 {[%clk 0:02:47.3]} 13... Bh6 {[%clk 0:02:08.4]} 14. Ke2 {[%clk
0:02:25.9]} 14... e5 {[%clk 0:01:47.9]} 15. Nf5 {[%clk 0:02:04.6]} 15... exd4
{[%clk 0:01:39.9]} 16. Nxh6 {[%clk 0:02:01.5]} 16... d3+ {[%clk 0:01:38.8]} 17.
Ke1 {[%clk 0:01:41.7]} 17... Ne5 {[%clk 0:01:39.2]} 18. Nf5 {[%clk 0:01:39.5]}
18... Qf6 {[%clk 0:01:37.4]} 19. Nd6+ {[%clk 0:00:21.3]} 19... Nxd6 {[%clk
0:01:29.2]} 20. Nd2 {[%clk 0:00:22.2]} 20... O-O-O {[%clk 0:01:25.7]} 21. b3
{[%clk 0:00:21]} 21... Ng4 {[%clk 0:01:06.2]} 22. Nf3 {[%clk 0:00:17.5]} 22...
Rhe8 {[%clk 0:01:06]} 23. h3 {[%clk 0:00:14.3]} 23... Rxe3+ {[%clk 0:01:02.9]}
24. Kd1 {[%clk 0:00:14.7]} 24... Nf2+ {[%clk 0:01:01.4]} 25. Kd2 {[%clk
0:00:15.3]} 25... Qf4 {[%clk 0:00:59.1]} 26. Qa3 {[%clk 0:00:11.6]} 26... Re2#
{[%clk 0:00:56.6]} 0-1

[Event "Late-Titled-Tuesday-Blitz-September-19-2023"]
[Site "Chess.com"]
[Date "2023.09.19"]
[Round "2"]
[White "lluiss"]
[Black "maksimys18"]
[Result "0-1"]
[WhiteElo "2254"]
[BlackElo "2494"]
[TimeControl "180+1"]
[EndTime "14:15:55 PDT"]
[Termination "maksimys18 won by checkmate"]

1. Nf3 {[%clk 0:02:29.6]} 1... e6 {[%clk 0:03:00.9]} 2. d4 {[%clk 0:02:27.9]}
2... d5 {[%clk 0:03:01.1]} 3. c4 {[%clk 0:02:26.3]} 3... Nf6 {[%clk 0:02:57.1]}
4. cxd5 {[%clk 0:02:26.3]} 4... exd5 {[%clk 0:02:56.7]} 5. Nc3 {[%clk
0:02:26.7]} 5... c6 {[%clk 0:02:56.6]} 6. Qc2 {[%clk 0:02:26.8]} 6... Bd6 {[%clk
0:02:56.7]} 7. Bg5 {[%clk 0:02:26.3]} 7... O-O {[%clk 0:02:56.2]} 8. e3 {[%clk
0:02:26.4]} 8... h6 {[%clk 0:02:56]} 9. Bh4 {[%clk 0:02:25.5]} 9... Nbd7 {[%clk
0:02:54.8]} 10. Bd3 {[%clk 0:02:25.4]} 10... Re8 {[%clk 0:02:54.8]} 11. O-O
{[%clk 0:02:24.3]} 11... Nf8 {[%clk 0:02:55.1]} 12. Bg3 {[%clk 0:02:21.3]} 12...
Bxg3 {[%clk 0:02:54.2]} 13. hxg3 {[%clk 0:02:22.2]} 13... Be6 {[%clk 0:02:49.9]}
14. b4 {[%clk 0:02:21.7]} 14... Rc8 {[%clk 0:02:49]} 15. Na4 {[%clk 0:02:21]}
15... N8d7 {[%clk 0:02:48]} 16. Rfc1 {[%clk 0:02:14.7]} 16... Qe7 {[%clk
0:02:47.1]} 17. Rab1 {[%clk 0:02:13.2]} 17... Bg4 {[%clk 0:02:44.4]} 18. Nd2
{[%clk 0:02:11.7]} 18... Bh5 {[%clk 0:02:41.1]} 19. b5 {[%clk 0:02:11.2]} 19...
cxb5 {[%clk 0:02:35]} 20. Qxc8 {[%clk 0:02:10.4]} 20... Rxc8 {[%clk 0:02:31.8]}
21. Rxc8+ {[%clk 0:02:10.1]} 21... Nf8 {[%clk 0:02:32]} 22. Bxb5 {[%clk
0:02:01.5]} 22... a6 {[%clk 0:02:28]} 23. Bd3 {[%clk 0:02:00]} 23... b5 {[%clk
0:02:28.2]} 24. Nc5 {[%clk 0:01:55.7]} 24... Ng4 {[%clk 0:02:24.1]} 25. Nf3
{[%clk 0:01:52.9]} 25... Nxe3 {[%clk 0:02:21]} 26. fxe3 {[%clk 0:01:46.5]} 26...
Qxe3+ {[%clk 0:02:20.4]} 27. Kh2 {[%clk 0:01:46.4]} 27... Bxf3 {[%clk
0:02:19.7]} 28. gxf3 {[%clk 0:01:36.6]} 28... Qf2+ {[%clk 0:02:12.1]} 29. Kh3
{[%clk 0:01:36]} 29... Qxf3 {[%clk 0:02:12.3]} 30. Rf1 {[%clk 0:01:30.9]} 30...
Qh5+ {[%clk 0:02:01]} 31. Kg2 {[%clk 0:01:30.1]} 31... Qg4 {[%clk 0:01:52.9]}
32. Bf5 {[%clk 0:01:24.4]} 32... Qxd4 {[%clk 0:01:30.8]} 33. Nd7 {[%clk
0:01:17.7]} 33... g6 {[%clk 0:01:28.1]} 34. Rxf8+ {[%clk 0:01:15]} 34... Kg7
{[%clk 0:01:27.5]} 35. Bxg6 {[%clk 0:00:49.1]} 35... Kxg6 {[%clk 0:01:23.5]} 36.
Rf6+ {[%clk 0:00:44.4]} 36... Kh5 {[%clk 0:01:16.7]} 37. Rf5+ {[%clk 0:00:32.4]}
37... Kg6 {[%clk 0:01:15.2]} 38. Rf6+ {[%clk 0:00:29.2]} 38... Kh5 {[%clk
0:01:14.9]} 39. R8xf7 {[%clk 0:00:26.2]} 39... Qe4+ {[%clk 0:01:13.7]} 40. Kh3
{[%clk 0:00:24.5]} 40... Qh1# {[%clk 0:01:12.6]} 0-1

[Event "Late-Titled-Tuesday-Blitz-September-19-2023"]
[Site "Chess.com"]
[Date "2023.09.19"]
[Round "2"]
[White "Garmendiarov"]
[Black "Chessdreamer2020"]
[Result "0-1"]
[WhiteElo "2358"]
[BlackElo "2517"]
[TimeControl "180+1"]
[EndTime "14:15:57 PDT"]
[Termination "Chessdreamer2020 won by resignation"]

1. e4 {[%clk 0:03:00.9]} 1... d6 {[%clk 0:02:59.2]} 2. d4 {[%clk 0:03:00.9]}
2... Nf6 {[%clk 0:02:57.8]} 3. Nc3 {[%clk 0:03:01.3]} 3... c6 {[%clk 0:02:58.4]}
4. Nf3 {[%clk 0:02:57.7]} 4... Bg4 {[%clk 0:02:57.4]} 5. Be2 {[%clk 0:02:56.5]}
5... e6 {[%clk 0:02:57.7]} 6. Be3 {[%clk 0:02:55.4]} 6... d5 {[%clk 0:02:57.9]}
7. e5 {[%clk 0:02:54.6]} 7... Nfd7 {[%clk 0:02:58.1]} 8. h3 {[%clk 0:02:51]}
8... Bxf3 {[%clk 0:02:56.5]} 9. Bxf3 {[%clk 0:02:51.9]} 9... c5 {[%clk
0:02:55.3]} 10. O-O {[%clk 0:02:10.6]} 10... Nc6 {[%clk 0:02:54.6]} 11. dxc5
{[%clk 0:02:06.3]} 11... Ndxe5 {[%clk 0:02:49.7]} 12. Nb5 {[%clk 0:01:43.6]}
12... a6 {[%clk 0:02:46.4]} 13. Nd4 {[%clk 0:01:38.8]} 13... Rc8 {[%clk
0:02:37.3]} 14. Nxc6 {[%clk 0:01:19.2]} 14... Nxc6 {[%clk 0:02:36.7]} 15. c3
{[%clk 0:01:15.1]} 15... Be7 {[%clk 0:02:31.5]} 16. b4 {[%clk 0:01:13.6]} 16...
O-O {[%clk 0:02:30.8]} 17. a3 {[%clk 0:00:59.3]} 17... Ne5 {[%clk 0:02:23.8]}
18. Be2 {[%clk 0:00:58.1]} 18... Bf6 {[%clk 0:02:13.7]} 19. Rc1 {[%clk
0:00:55.5]} 19... Nc6 {[%clk 0:02:02.1]} 20. Qb3 {[%clk 0:00:46.5]} 20... Re8
{[%clk 0:01:57.9]} 21. Rfd1 {[%clk 0:00:46.2]} 21... Qc7 {[%clk 0:01:56.6]} 22.
a4 {[%clk 0:00:29.7]} 22... Ra8 {[%clk 0:01:50.3]} 23. b5 {[%clk 0:00:20.9]}
23... axb5 {[%clk 0:01:49.9]} 24. axb5 {[%clk 0:00:21.8]} 24... Ne5 {[%clk
0:01:47.6]} 25. b6 {[%clk 0:00:13.5]} 25... Qe7 {[%clk 0:01:42.9]} 26. Bb5
{[%clk 0:00:11.2]} 26... Rec8 {[%clk 0:01:42.9]} 27. Bd4 {[%clk 0:00:10.5]}
27... Nd7 {[%clk 0:01:41.3]} 28. Bxf6 {[%clk 0:00:09.2]} 28... Nxf6 {[%clk
0:01:34.8]} 29. Qb4 {[%clk 0:00:07.2]} 29... Qxc5 {[%clk 0:01:34.1]} 30. Qxc5
{[%clk 0:00:06]} 30... Rxc5 {[%clk 0:01:35]} 31. c4 {[%clk 0:00:06.3]} 31...
Rac8 {[%clk 0:01:32.3]} 32. Kf1 {[%clk 0:00:03.8]} 32... dxc4 {[%clk 0:01:32.2]}
33. Ba4 {[%clk 0:00:03.1]} 33... Nd5 {[%clk 0:01:32.2]} 34. Bc2 {[%clk 0:00:03]}
34... Nxb6 {[%clk 0:01:32]} 35. Be4 {[%clk 0:00:03.2]} 35... Nd5 {[%clk
0:01:29.6]} 36. Rd4 {[%clk 0:00:03.1]} 36... b5 {[%clk 0:01:29.7]} 37. Rb1
{[%clk 0:00:03]} 37... Kf8 {[%clk 0:01:29.3]} 38. Rdd1 {[%clk 0:00:02.3]} 38...
Nc3 {[%clk 0:01:27.8]} 0-1